[Event "35th Roquetas Festival 2024"]
[Site "Roquetas de Mar"]
[Date "2024.01.03"]
[Round "3.14"]
[White "Cuenca Jimenez, Jose Fernando"]
[Black "Gomez Sanjuan, Hector Fernando"]
[Result "1-0"]
[ECO "A45"]
[WhiteElo "2514"]
[BlackElo "2139"]
[Annotator "TA"]
[PlyCount "57"]
[EventDate "2024.01.02"]
[EventType "swiss"]
[EventCountry "ESP"]
[SourceTitle "playchess.com"]
[Source "ChessBase"]
[SourceQuality "1"]
[TimeControl "5400+30"]

{[%evp 9,57,101,97,106,113,89,145,147,143,147,147,144,148,127,139,87,126,117,130,132,167,164,153,159,184,189,193,186,187,185,189,171,234,240,235,239,235,253,229,253,325,364,358,356,347,343,574,558,535,520]} 1. d4 {[%emt 0:00:45]} Nf6 {[%emt 0:04:01]} 2. Bf4 {[%emt 0:00:07]} c5 {[%emt 0:00:20]} 3. d5 {[%emt 0:02:20]} b5 {[%emt 0:01:27]} 4. e4 {[%emt 0:02:40]} Qa5+ {[%emt 0:01:17]} 5. Qd2 {[%emt 0:06:53] [#]} Qxd2+ $146 {[%emt 0:01:10]} ({Predecessor:} 5... b4 6. e5 Nh5 7. Be3 g6 8. Na3 d6 9. Nc4 Qc7 10. Be2 Ba6 11. g4 Ng7 12. exd6 exd6 {1-0 Farokhi,K (2266)-Albert,M (2232) GER-ch U18 Willingen 2023 (5)}) 6. Nxd2 {[%emt 0:01:09] A45: Trompowsky Attack.} b4 {[%emt 0:05:39]} 7. a3 {[%emt 0:03:43]} bxa3 {[%emt 0:01:25]} (7... e6 $142) 8. Rxa3 $16 {[%emt 0:00:04] White is clearly better.} d6 {[%emt 0:00:44]} 9. Bb5+ {[%emt 0:06:13]} Bd7 {[%emt 0:02:47]} 10. Bd3 {[%emt 0:07:04] White is much more active.} g6 {[%emt 0:06:14]} 11. h3 {[%emt 0:02:25]} Bg7 {[%emt 0:01:33]} 12. c3 {[%emt 0:03:55]} ({White should play} 12. Nc4) 12... O-O {[%emt 0:06:21]} 13. Ngf3 {[%emt 0:02:39][%cal Bg1f3,Bf3d2,Bd2c4][%mdl 32]} Bc8 {[%emt 0:11:55]} 14. O-O {[%emt 0:03:29]} Rd8 {[%emt 0:02:37]} 15. Nc4 {[%emt 0:13:19] Nb6 is the strong threat.} Ba6 {[%emt 0:04:58] [#]} 16. Nfd2 $1 {[%emt 0:03:59]} Rd7 {[%emt 0:06:20]} 17. Rfa1 {[%emt 0:01:53][%cal Bf1a1,Ba1a2,Ba2a7][%mdl 32]} Bxc4 {[%emt 0:00:07]} 18. Nxc4 {[%emt 0:03:04] Hoping for Nb6.} Rb7 {[%emt 0:00:06] Against Nb6} 19. R1a2 {[%emt 0:03:36]} Nfd7 {[%emt 0:03:18]} 20. Bc2 {[%emt 0:02:34] Black is weak on the light squares} Nb6 {[%emt 0:02:44]} (20... a6 $142 21. Ba4 Rc7) 21. Nxb6 $18 {[%emt 0:13:32]} Rxb6 {[%emt 0:00:20]} 22. Rxa7 {[%emt 0:00:02]} Rxa7 {[%emt 0:00:07]} 23. Rxa7 {[%emt 0:00:01]} Rxb2 {[%emt 0:09:53]} 24. Rxe7 {[%emt 0:00:05]} Rxc2 {[%emt 0:00:13]} 25. Re8+ {[%emt 0:00:07]} ({Less strong is} 25. Bxd6 Bxc3 26. Re8+ (26. Bxb8 Kf8 $16) 26... Kg7 $16) 25... Bf8 {[%emt 0:00:04]} 26. Rxb8 {[%emt 0:00:18] [#] White wants to mate with Bh6.} Kg7 {[%emt 0:00:19] Prevents Bh6+} 27. e5 {[%emt 0:06:55]} g5 $2 {[%emt 0:03:09]} (27... dxe5 28. Bxe5+ f6) 28. Bxg5 {[%emt 0:01:15] Black must now prevent Bf6+.} dxe5 {[%emt 0:00:10]} 29. Rb6 {[%emt 0:00:02] Weighted Error Value: White=0.06 (flawless) /Black=0.32} 1-0

[Event "35th Roquetas Festival 2024"]
[Site "Roquetas de Mar"]
[Date "2024.01.03"]
[Round "3.15"]
[White "Rodriguez Garcia, Manuel Francisco"]
[Black "Huerga Leache, Mikel"]
[Result "1-0"]
[ECO "A13"]
[WhiteElo "2130"]
[BlackElo "2424"]
[Annotator "RC"]
[PlyCount "63"]
[EventDate "2024.01.02"]
[EventType "swiss"]
[EventCountry "ESP"]
[SourceTitle "playchess.com"]
[Source "ChessBase"]
[SourceQuality "1"]
[TimeControl "5400+30"]

1. c4 {[%emt 0:01:40]} e6 {[%emt 0:02:32]} 2. Nc3 {[%emt 0:05:23]} d5 {[%emt 0:03:42]} 3. e3 {[%emt 0:00:10]} Nf6 {[%emt 0:00:28]} 4. Nf3 {[%emt 0:00:06]} c5 {[%emt 0:00:24]} 5. d4 {[%emt 0:02:56]} Nc6 {[%emt 0:00:19]} 6. a3 {[%emt 0:00:07]} a6 {[%emt 0:01:28]} 7. cxd5 {[%emt 0:10:20]} exd5 {[%emt 0:00:16]} 8. dxc5 {[%emt 0:00:10]} Bxc5 {[%emt 0:00:12]} 9. Be2 {[%emt 0:00:04]} O-O {[%emt 0:00:12]} 10. O-O {[%emt 0:00:05]} Re8 {[%emt 0:01:08]} 11. b4 {[%emt 0:07:18]} Bb6 {[%emt 0:02:17]} 12. Bb2 {[%emt 0:00:04]} Bc7 {[%emt 0:02:53]} 13. Qd3 {[%emt 0:30:36]} Qd6 {[%emt 0:02:06]} 14. Rfd1 {[%emt 0:00:18]} Be6 {[%emt 0:01:45]} 15. g3 {[%emt 0:00:54]} Rad8 {[%emt 0:00:14]} 16. Rac1 {[%emt 0:14:22]} Bg4 {[%emt 0:01:18]} 17. Na4 {[%emt 0:03:36]} Bb8 {[%emt 0:02:22]} 18. Nc5 {[%emt 0:01:33]} Re7 {[%emt 0:01:23]} 19. Qc2 {[%emt 0:07:55]} Rc8 {[%emt 0:02:36]} 20. Ng5 {[%emt 0:02:23]} Ne5 {[%emt 0:01:30]} 21. Bxe5 {[%emt 0:02:07]} Rxe5 {[%emt 0:11:22]} 22. Bxg4 {[%emt 0:00:45]} Rc7 {[%emt 0:00:02]} 23. Nf3 {[%emt 0:03:23]} Nxg4 {[%emt 0:00:59]} 24. Nxe5 {[%emt 0:00:23]} Qxe5 {[%emt 0:00:44]} 25. Qe2 {[%emt 0:02:30]} Qh5 {[%emt 0:00:39]} 26. h4 {[%emt 0:00:13]} h6 {[%emt 0:10:41]} 27. Rd4 {[%emt 0:00:47]} f5 {[%emt 0:00:25]} 28. Rxd5 {[%emt 0:00:16]} Kh7 {[%emt 0:01:13]} 29. Qf3 {[%emt 0:02:27]} Rf7 {[%emt 0:03:09]} 30. Nd7 {[%emt 0:00:15]} Ba7 {[%emt 0:00:52]} 31. Rc8 {[%emt 0:00:54]} g6 {[%emt 0:07:24]} 32. Nf8+ {[%emt 0:00:15]} 1-0

[Event "35th Roquetas Festival 2024"]
[Site "Roquetas de Mar"]
[Date "2024.01.03"]
[Round "3.16"]
[White "Fiorito, Joaquin"]
[Black "Navarro Martinez, Victor"]
[Result "1-0"]
[ECO "D31"]
[WhiteElo "2401"]
[BlackElo "2124"]
[Annotator "RC"]
[PlyCount "81"]
[EventDate "2024.01.02"]
[EventType "swiss"]
[EventCountry "ESP"]
[SourceTitle "playchess.com"]
[Source "ChessBase"]
[SourceQuality "1"]
[TimeControl "5400+30"]

1. d4 {[%emt 0:00:02]} d5 {[%emt 0:00:50]} 2. c4 {[%emt 0:00:05]} e6 {[%emt 0:00:23]} 3. Nc3 {[%emt 0:00:05]} h6 {[%emt 0:00:48]} 4. Nf3 {[%emt 0:00:29]} Nf6 {[%emt 0:00:31]} 5. cxd5 {[%emt 0:01:01]} exd5 {[%emt 0:00:23]} 6. Bf4 {[%emt 0:00:04]} Bd6 {[%emt 0:00:55]} 7. e3 {[%emt 0:02:29]} O-O {[%emt 0:07:02]} 8. Bd3 {[%emt 0:02:03]} Bxf4 {[%emt 0:04:02]} 9. exf4 {[%emt 0:00:13]} Bg4 {[%emt 0:02:28]} 10. O-O {[%emt 0:00:29]} Qd6 {[%emt 0:06:47]} 11. h3 {[%emt 0:00:25]} Bxf3 {[%emt 0:02:33]} 12. Qxf3 {[%emt 0:00:04]} Nc6 {[%emt 0:00:39]} 13. Ne2 {[%emt 0:01:33]} Rfe8 {[%emt 0:07:17]} 14. Rac1 {[%emt 0:01:41]} a6 {[%emt 0:06:04]} 15. Rfd1 {[%emt 0:02:18]} Re7 {[%emt 0:04:58]} 16. a3 {[%emt 0:04:29]} Rae8 {[%emt 0:02:21]} 17. b4 {[%emt 0:00:30]} Nd8 {[%emt 0:03:59]} 18. Ng3 {[%emt 0:03:00]} g6 {[%emt 0:07:23]} 19. f5 {[%emt 0:01:19]} g5 {[%emt 0:04:33]} 20. Nh5 {[%emt 0:03:45]} Nxh5 {[%emt 0:01:05]} 21. Qxh5 {[%emt 0:00:42]} Nc6 {[%emt 0:01:13]} 22. h4 {[%emt 0:05:54]} Qf6 {[%emt 0:01:10]} 23. hxg5 {[%emt 0:03:56]} Qxg5 {[%emt 0:05:52]} 24. Qxg5+ {[%emt 0:00:38]} hxg5 {[%emt 0:00:02]} 25. Bxa6 {[%emt 0:01:02]} Re4 {[%emt 0:04:21]} 26. Bxb7 {[%emt 0:08:08]} Nxd4 {[%emt 0:00:13]} 27. f3 {[%emt 0:00:51]} Rf4 {[%emt 0:06:22]} 28. Re1 {[%emt 0:02:12]} Re2 {[%emt 0:01:33]} 29. Bxd5 {[%emt 0:02:14]} Rb2 {[%emt 0:06:18]} 30. Rxc7 {[%emt 0:04:07]} Ne2+ {[%emt 0:00:21]} 31. Rxe2 {[%emt 0:00:03]} Rxe2 {[%emt 0:00:06]} 32. Bxf7+ {[%emt 0:03:26]} Kf8 {[%emt 0:00:11]} 33. Be6 {[%emt 0:01:33]} Rd4 {[%emt 0:00:53]} 34. Rf7+ {[%emt 0:00:22]} Ke8 {[%emt 0:00:38]} 35. Rg7 {[%emt 0:00:28]} Re3 {[%emt 0:02:48]} 36. Rxg5 {[%emt 0:00:31]} Ke7 {[%emt 0:01:08]} 37. b5 {[%emt 0:02:02]} Rxa3 {[%emt 0:00:42]} 38. b6 {[%emt 0:01:05]} Kf6 {[%emt 0:00:53]} 39. Rg6+ {[%emt 0:00:23]} Ke5 {[%emt 0:00:02]} 40. b7 {[%emt 0:00:24]} Rb4 {[%emt 0:00:40]} 41. Bc8 {[%emt 0:00:05]} 1-0

[Event "35th Roquetas Festival 2024"]
[Site "Roquetas de Mar"]
[Date "2024.01.03"]
[Round "3.17"]
[White "Alba Fernandez, Nicolas"]
[Black "Tejedor Fuente, Enrique"]
[Result "0-1"]
[ECO "E35"]
[WhiteElo "2123"]
[BlackElo "2395"]
[Annotator "RC"]
[PlyCount "48"]
[EventDate "2024.01.02"]
[EventType "swiss"]
[EventCountry "ESP"]
[SourceTitle "playchess.com"]
[Source "ChessBase"]
[SourceQuality "1"]
[TimeControl "5400+30"]

1. d4 {[%emt 0:02:48]} Nf6 {[%emt 0:01:43]} 2. c4 {[%emt 0:00:50]} e6 {[%emt 0:00:36]} 3. Nc3 {[%emt 0:00:06]} Bb4 {[%emt 0:00:25]} 4. Qc2 {[%emt 0:01:04]} d5 {[%emt 0:00:05]} 5. cxd5 {[%emt 0:00:07]} exd5 {[%emt 0:00:20]} 6. Bg5 {[%emt 0:00:34]} h6 {[%emt 0:02:13]} 7. Bh4 {[%emt 0:01:01]} g5 {[%emt 0:01:20]} 8. Bg3 {[%emt 0:00:08]} Ne4 9. e3 {[%emt 0:01:28]} c5 {[%emt 0:06:06]} 10. dxc5 {[%emt 0:02:27]} Qa5 {[%emt 0:12:17]} 11. Rc1 {[%emt 0:02:32]} Nd7 12. Nge2 {[%emt 0:29:36]} Ndxc5 {[%emt 0:27:58]} 13. a3 {[%emt 0:00:07]} Bxc3+ {[%emt 0:04:08]} 14. Nxc3 {[%emt 0:00:20]} Bf5 {[%emt 0:04:44]} 15. b4 {[%emt 0:08:39]} Qxa3 {[%emt 0:06:53]} 16. Nxd5 {[%emt 0:00:49]} Rc8 {[%emt 0:12:27]} 17. Bc7 {[%emt 0:21:35]} O-O 18. bxc5 {[%emt 0:03:07]} Rxc7 {[%emt 0:04:06]} 19. Nxc7 {[%emt 0:14:11]} Qa5+ {[%emt 0:00:50]} 20. Ke2 {[%emt 0:00:10]} Rd8 {[%emt 0:03:59]} 21. Kf3 {[%emt 0:07:43]} g4+ {[%emt 0:06:02]} 22. Kf4 {[%emt 0:00:09]} Qxc7+ {[%emt 0:00:12]} 23. Kxf5 {[%emt 0:00:05]} Rd5+ {[%emt 0:00:11]} 24. Kxg4 {[%emt 0:00:26]} Qd7+ {[%emt 0:00:05]} 0-1

[Event "35th Roquetas Festival 2024"]
[Site "Roquetas de Mar"]
[Date "2024.01.03"]
[Round "3.18"]
[White "Hompanera Lopez, Enrique"]
[Black "Camacho Collados, Jose"]
[Result "0-1"]
[ECO "A06"]
[WhiteElo "2032"]
[BlackElo "2381"]
[Annotator "RC"]
[PlyCount "78"]
[EventDate "2024.01.02"]
[EventType "swiss"]
[EventCountry "ESP"]
[SourceTitle "playchess.com"]
[Source "ChessBase"]
[SourceQuality "1"]
[TimeControl "5400+30"]

1. Nf3 {[%emt 0:00:15]} d5 {[%emt 0:02:11]} 2. g3 {[%emt 0:00:15]} Nd7 {[%emt 0:00:31]} 3. Bg2 {[%emt 0:00:52]} e5 {[%emt 0:00:07]} 4. d3 {[%emt 0:00:45]} Ngf6 {[%emt 0:00:59]} 5. O-O {[%emt 0:00:40]} Bd6 {[%emt 0:00:35]} 6. Nc3 {[%emt 0:04:33]} c6 {[%emt 0:00:50]} 7. e4 {[%emt 0:01:31]} O-O {[%emt 0:02:29]} 8. Nh4 {[%emt 0:06:38]} Nb6 {[%emt 0:04:10]} 9. Nf5 {[%emt 0:09:58]} Bxf5 {[%emt 0:06:45]} 10. exf5 {[%emt 0:00:07]} h6 {[%emt 0:00:21]} 11. f4 {[%emt 0:10:57]} exf4 {[%emt 0:01:56]} 12. Bxf4 {[%emt 0:00:13]} Bxf4 {[%emt 0:02:13]} 13. Rxf4 {[%emt 0:00:22]} Re8 {[%emt 0:01:59]} 14. Qd2 {[%emt 0:04:40]} Qe7 {[%emt 0:03:31]} 15. Qf2 {[%emt 0:11:54]} Rad8 {[%emt 0:01:58]} 16. g4 {[%emt 0:03:36]} Qe5 {[%emt 0:06:28]} 17. Rf1 {[%emt 0:06:07]} d4 {[%emt 0:07:24]} 18. Nd1 {[%emt 0:02:36]} Rd7 {[%emt 0:23:27]} 19. h4 {[%emt 0:04:13]} Qe2 {[%emt 0:05:59]} 20. g5 {[%emt 0:12:43]} Nh5 {[%emt 0:01:34]} 21. Qxe2 {[%emt 0:03:59]} Rxe2 {[%emt 0:00:21]} 22. Re4 {[%emt 0:00:07]} Rxe4 {[%emt 0:01:36]} 23. dxe4 {[%emt 0:01:11]} Nc4 {[%emt 0:03:15]} 24. b3 {[%emt 0:03:02]} Ne5 {[%emt 0:00:08]} 25. Nb2 {[%emt 0:00:12]} Ng3 {[%emt 0:02:03]} 26. Re1 {[%emt 0:01:20]} Re7 {[%emt 0:05:34]} 27. Kf2 {[%emt 0:01:29]} Nh5 {[%emt 0:00:49]} 28. Nd3 {[%emt 0:03:10]} Nxd3+ {[%emt 0:00:13]} 29. cxd3 {[%emt 0:00:05]} Nf4 {[%emt 0:00:17]} 30. Bf1 {[%emt 0:00:23]} hxg5 {[%emt 0:02:11]} 31. hxg5 {[%emt 0:00:07]} g6 {[%emt 0:01:10]} 32. fxg6 {[%emt 0:06:07]} Nxg6 {[%emt 0:00:10]} 33. Kg3 {[%emt 0:00:33]} Re5 {[%emt 0:00:54]} 34. Kg4 {[%emt 0:00:25]} Nf8 {[%emt 0:00:12]} 35. Kf4 {[%emt 0:01:09]} Ra5 {[%emt 0:00:08]} 36. Bh3 {[%emt 0:00:30]} Ng6+ {[%emt 0:00:43]} 37. Kg3 {[%emt 0:00:06]} Rxg5+ {[%emt 0:00:23]} 38. Kf3 {[%emt 0:00:21]} Ne5+ {[%emt 0:01:06]} 39. Ke2 {[%emt 0:00:54]} Rg3 {[%emt 0:00:26]} 0-1

[Event "35th Roquetas Festival 2024"]
[Site "Roquetas de Mar"]
[Date "2024.01.03"]
[Round "3.19"]
[White "Bernal Moro, Luis Javier"]
[Black "Castillo Rodriguez, Angel Luis"]
[Result "1/2-1/2"]
[ECO "A05"]
[WhiteElo "2370"]
[BlackElo "2055"]
[Annotator "RC"]
[PlyCount "122"]
[EventDate "2024.01.02"]
[EventType "swiss"]
[EventCountry "ESP"]
[SourceTitle "playchess.com"]
[Source "ChessBase"]
[SourceQuality "1"]
[TimeControl "5400+30"]

1. Nf3 {[%emt 0:01:50]} Nf6 {[%emt 0:00:14]} 2. c4 {[%emt 0:00:17]} b6 {[%emt 0:00:28]} 3. g3 {[%emt 0:03:37]} Bb7 {[%emt 0:00:14]} 4. Bg2 {[%emt 0:00:06]} g6 {[%emt 0:00:10]} 5. O-O {[%emt 0:10:06]} Bg7 {[%emt 0:00:09]} 6. Nc3 {[%emt 0:01:28]} O-O {[%emt 0:00:17]} 7. d4 {[%emt 0:11:08]} Ne4 {[%emt 0:00:50]} 8. Nxe4 {[%emt 0:01:18]} Bxe4 {[%emt 0:00:15]} 9. Re1 {[%emt 0:05:33]} c5 {[%emt 0:04:14]} 10. d5 {[%emt 0:05:59]} d6 {[%emt 0:01:33]} 11. Bh3 {[%emt 0:04:32]} Bxf3 {[%emt 0:22:51]} 12. exf3 {[%emt 0:00:06]} Re8 {[%emt 0:06:50]} 13. f4 {[%emt 0:19:56]} Bf6 {[%emt 0:13:02]} 14. Rb1 {[%emt 0:08:16]} a6 {[%emt 0:06:05]} 15. Bf1 {[%emt 0:06:52]} Nd7 {[%emt 0:03:25]} 16. a4 {[%emt 0:00:45]} Nf8 {[%emt 0:00:20]} 17. Be3 {[%emt 0:07:19]} Qd7 {[%emt 0:00:27]} 18. Qb3 {[%emt 0:01:36]} Rab8 {[%emt 0:02:10]} 19. Red1 {[%emt 0:00:25]} Qc7 {[%emt 0:10:34]} 20. Qd3 {[%emt 0:01:04]} Nd7 {[%emt 0:01:06]} 21. b3 {[%emt 0:00:09]} Rb7 {[%emt 0:00:26]} 22. Rd2 {[%emt 0:00:39]} Nb8 {[%emt 0:00:38]} 23. Re1 {[%emt 0:02:40]} Qd7 {[%emt 0:00:21]} 24. h4 {[%emt 0:00:39]} Bg7 {[%emt 0:01:08]} 25. Kh2 {[%emt 0:00:57]} Qd8 {[%emt 0:14:07]} 26. h5 {[%emt 0:02:34]} Nd7 {[%emt 0:00:36]} 27. hxg6 {[%emt 0:00:18]} hxg6 {[%emt 0:00:15]} 28. Bh3 {[%emt 0:01:04]} Bf6 {[%emt 0:05:48]} 29. Rdd1 {[%emt 0:02:32]} Kg7 {[%emt 0:00:47]} 30. Bg4 {[%emt 0:00:14]} Rh8+ {[%emt 0:00:39]} 31. Kg2 {[%emt 0:00:04]} Qc7 {[%emt 0:00:52]} 32. Be2 {[%emt 0:00:24]} Nf8 {[%emt 0:02:39]} 33. g4 {[%emt 0:01:01]} Qd7 {[%emt 0:00:25]} 34. Rh1 {[%emt 0:00:28]} Kg8 {[%emt 0:00:15]} 35. Rxh8+ {[%emt 0:00:17]} Bxh8 {[%emt 0:00:01]} 36. Qe4 {[%emt 0:01:02]} Rb8 {[%emt 0:00:19]} 37. Kg3 Re8 {[%emt 0:00:16]} 38. Qd3 {[%emt 0:01:11]} Bg7 {[%emt 0:00:42]} 39. g5 {[%emt 0:00:11]} Rd8 {[%emt 0:01:17]} 40. Bg4 {[%emt 0:00:27]} Qe8 {[%emt 0:00:00]} 41. f5 {[%emt 0:00:47]} Rb8 {[%emt 0:00:16]} 42. Re1 {[%emt 0:00:37]} b5 {[%emt 0:00:43]} 43. axb5 {[%emt 0:00:07]} axb5 {[%emt 0:00:05]} 44. Bf4 {[%emt 0:01:10]} Qd8 {[%emt 0:00:01]} 45. cxb5 {[%emt 0:00:22]} Rb7 {[%emt 0:00:17]} 46. Kg2 {[%emt 0:00:44]} Qa5 {[%emt 0:00:16]} 47. Re3 {[%emt 0:00:17]} Bd4 {[%emt 0:00:47]} 48. Rh3 {[%emt 0:00:24]} Qxb5 {[%emt 0:02:31]} 49. Qg3 {[%emt 0:00:34]} Ra7 {[%emt 0:01:36]} 50. Rh1 {[%emt 0:00:40]} Ra2 {[%emt 0:00:22]} 51. Be3 {[%emt 0:00:28]} Qxb3 {[%emt 0:00:28]} 52. Bxd4 {[%emt 0:00:36]} Qxd5+ {[%emt 0:00:42]} 53. Bf3 {[%emt 0:00:32]} Qxd4 {[%emt 0:00:17]} 54. Rh4 {[%emt 0:00:32]} Qd2 {[%emt 0:01:04]} 55. f6 {[%emt 0:00:13]} exf6 {[%emt 0:00:37]} 56. gxf6 {[%emt 0:00:04]} Nh7 {[%emt 0:00:27]} 57. Be4 {[%emt 0:00:42]} Ng5 {[%emt 0:00:55]} 58. Rg4 {[%emt 0:00:26]} Qe1 {[%emt 0:00:47]} 59. Bxg6 {[%emt 0:00:43]} fxg6 {[%emt 0:00:18]} 60. Rxg5 {[%emt 0:00:04]} Qe4+ {[%emt 0:00:31]} 61. Kh2 Kf7 1/2-1/2

[Event "35th Roquetas Festival 2024"]
[Site "Roquetas de Mar"]
[Date "2024.01.03"]
[Round "3.20"]
[White "Schenderowitsch, Michael"]
[Black "Torres Rebolledo, Victor"]
[Result "1-0"]
[ECO "E18"]
[WhiteElo "2281"]
[BlackElo "2124"]
[Annotator "RC"]
[PlyCount "177"]
[EventDate "2024.01.02"]
[EventType "swiss"]
[EventCountry "ESP"]
[SourceTitle "playchess.com"]
[Source "ChessBase"]
[SourceQuality "1"]
[TimeControl "5400+30"]

1. d4 {[%emt 0:00:03]} Nf6 {[%emt 0:00:12]} 2. c4 {[%emt 0:00:06]} e6 {[%emt 0:00:28]} 3. Nf3 {[%emt 0:00:05]} b6 {[%emt 0:00:42]} 4. g3 {[%emt 0:01:49]} Bb7 {[%emt 0:00:19]} 5. Bg2 {[%emt 0:00:06]} Be7 {[%emt 0:00:07]} 6. O-O {[%emt 0:00:15]} O-O {[%emt 0:00:08]} 7. Nc3 {[%emt 0:02:06]} Na6 {[%emt 0:00:06]} 8. Re1 {[%emt 0:02:37]} Ne4 {[%emt 0:01:35]} 9. Nxe4 {[%emt 0:05:46]} Bxe4 {[%emt 0:00:12]} 10. Ne5 {[%emt 0:06:09]} Bxg2 {[%emt 0:05:08]} 11. Kxg2 {[%emt 0:00:02]} Bf6 {[%emt 0:08:27]} 12. Ng4 {[%emt 0:09:51]} d5 {[%emt 0:28:53]} 13. Qa4 {[%emt 0:05:16]} Nb8 {[%emt 0:01:46]} 14. Rd1 {[%emt 0:02:48]} h5 {[%emt 0:08:28]} 15. Nxf6+ {[%emt 0:01:02]} Qxf6 {[%emt 0:00:02]} 16. Bf4 {[%emt 0:15:19]} Rc8 {[%emt 0:14:24]} 17. Rac1 {[%emt 0:00:46]} Qf5 {[%emt 0:11:35]} 18. Qc2 {[%emt 0:04:19]} Qxc2 {[%emt 0:04:14]} 19. Rxc2 {[%emt 0:00:02]} Na6 {[%emt 0:01:12]} 20. a3 {[%emt 0:10:02]} dxc4 {[%emt 0:04:10]} 21. Rxc4 {[%emt 0:00:17]} c5 {[%emt 0:00:20]} 22. Ra4 {[%emt 0:01:20]} Nc7 {[%emt 0:02:14]} 23. dxc5 {[%emt 0:00:24]} bxc5 {[%emt 0:00:00]} 24. e4 {[%emt 0:02:03]} Nb5 {[%emt 0:01:06]} 25. Rc4 {[%emt 0:03:21]} f6 {[%emt 0:01:49]} 26. Be3 {[%emt 0:02:18]} Rc6 {[%emt 0:01:47]} 27. Rxc5 {[%emt 0:01:06]} Rxc5 {[%emt 0:00:02]} 28. Bxc5 {[%emt 0:00:06]} Rc8 {[%emt 0:00:02]} 29. Be3 {[%emt 0:00:29]} Rc4 {[%emt 0:00:25]} 30. Rd8+ {[%emt 0:02:14]} Kh7 {[%emt 0:00:15]} 31. Kf3 {[%emt 0:09:03]} a5 {[%emt 0:00:45]} 32. Ra8 {[%emt 0:01:43]} a4 {[%emt 0:01:24]} 33. Ra5 {[%emt 0:00:16]} Nd4+ {[%emt 0:02:51]} 34. Bxd4 {[%emt 0:00:13]} Rxd4 {[%emt 0:00:01]} 35. Rxh5+ {[%emt 0:00:21]} Kg6 {[%emt 0:00:00]} 36. Rb5 {[%emt 0:00:28]} Rd2 {[%emt 0:00:42]} 37. Ke3 {[%emt 0:00:32]} Rc2 {[%emt 0:00:02]} 38. h4 {[%emt 0:00:17]} e5 {[%emt 0:00:18]} 39. Rb4 {[%emt 0:03:24]} Kh5 {[%emt 0:00:09]} 40. Kf3 {[%emt 0:02:15]} Rd2 41. Rb8 {[%emt 0:01:28]} Rc2 {[%emt 0:01:47]} 42. Rh8+ {[%emt 0:00:22]} Kg6 {[%emt 0:00:02]} 43. h5+ {[%emt 0:00:10]} Kg5 {[%emt 0:00:10]} 44. h6 {[%emt 0:00:38]} gxh6 {[%emt 0:00:40]} 45. Rg8+ {[%emt 0:00:12]} Kh5 {[%emt 0:00:10]} 46. Rb8 {[%emt 0:04:06]} Kg5 {[%emt 0:01:01]} 47. Ke3 {[%emt 0:00:21]} h5 {[%emt 0:00:57]} 48. Rb6 {[%emt 0:00:22]} Kg4 {[%emt 0:01:26]} 49. Rb7 {[%emt 0:00:27]} Kg5 {[%emt 0:00:58]} 50. Rb6 {[%emt 0:00:22]} Kg4 {[%emt 0:00:44]} 51. Rb4 {[%emt 0:03:57]} Kg5 {[%emt 0:00:20]} 52. Kf3 {[%emt 0:00:08]} Rd2 {[%emt 0:00:21]} 53. Rb6 {[%emt 0:00:21]} Rc2 {[%emt 0:00:23]} 54. Kg2 {[%emt 0:00:12]} Re2 {[%emt 0:00:21]} 55. Rb4 {[%emt 0:00:55]} Kg4 {[%emt 0:00:19]} 56. Rxa4 {[%emt 0:00:55]} Rxb2 {[%emt 0:00:05]} 57. Ra6 {[%emt 0:00:02]} Kg5 {[%emt 0:00:35]} 58. Ra8 {[%emt 0:00:18]} Ra2 {[%emt 0:00:27]} 59. Kf3 {[%emt 0:00:16]} h4 60. Rg8+ {[%emt 0:02:00]} Kh6 {[%emt 0:02:16]} 61. gxh4 {[%emt 0:02:00]} Rxa3+ {[%emt 0:00:05]} 62. Kg4 {[%emt 0:00:06]} Rb3 {[%emt 0:01:09]} 63. h5 {[%emt 0:00:20]} Rb2 {[%emt 0:00:47]} 64. Rg6+ {[%emt 0:00:05]} Kh7 {[%emt 0:00:03]} 65. Rxf6 {[%emt 0:00:05]} Kg7 {[%emt 0:00:17]} 66. Kg5 {[%emt 0:00:45]} Re2 {[%emt 0:00:29]} 67. h6+ {[%emt 0:00:15]} Kh7 {[%emt 0:00:09]} 68. f3 {[%emt 0:00:19]} Rf2 {[%emt 0:00:29]} 69. Kg4 {[%emt 0:00:28]} Rf1 {[%emt 0:00:06]} 70. Re6 {[%emt 0:00:43]} Rg1+ {[%emt 0:00:10]} 71. Kh3 {[%emt 0:00:26]} Rf1 {[%emt 0:00:34]} 72. Kg2 {[%emt 0:00:10]} Ra1 {[%emt 0:00:11]} 73. Rxe5 {[%emt 0:00:16]} Kxh6 {[%emt 0:00:01]} 74. Kg3 {[%emt 0:00:18]} Kg6 {[%emt 0:00:02]} 75. Rc5 {[%emt 0:00:30]} Kf6 {[%emt 0:00:07]} 76. Kf4 {[%emt 0:00:14]} Ra6 {[%emt 0:00:20]} 77. Rd5 {[%emt 0:00:13]} Ke6 {[%emt 0:00:29]} 78. Rh5 {[%emt 0:00:05]} Ra4 {[%emt 0:00:21]} 79. Rh6+ {[%emt 0:00:08]} Kf7 80. Kf5 {[%emt 0:00:29]} Ra3 {[%emt 0:01:16]} 81. f4 {[%emt 0:00:17]} Ra5+ {[%emt 0:00:07]} 82. e5 {[%emt 0:00:08]} Ke8 {[%emt 0:00:25]} 83. Rb6 {[%emt 0:00:18]} Ra1 {[%emt 0:00:05]} 84. Kf6 {[%emt 0:01:39]} Rh1 {[%emt 0:00:15]} 85. Rb8+ {[%emt 0:00:39]} Kd7 {[%emt 0:00:00]} 86. e6+ {[%emt 0:00:30]} Kc7 {[%emt 0:00:00]} 87. Rg8 {[%emt 0:00:27]} Kd6 88. Rd8+ {[%emt 0:00:11]} Kc7 {[%emt 0:00:20]} 89. e7 1-0